bitfinex/quotes_ETHUSD_20230119
["timestamp","ask_amount","ask_price","bid_price","bid_amount"]
[1674098116064,1.543,1526.1,1525.8,19.72755]
[1674098116256,7.34020677,1526.2,1525.8,19.72755]
[1674098116464,7.34020677,1526.2,1526.0,6.55307]
[1674098116710,7.34020677,1526.2,1526.0,6.61907]
[1674098117281,0.06600677,1526.2,1526.0,6.61907]
[1674098117492,6.77e-06,1526.2,1526.0,6.61907]
[1674098117761,1.53900677,1526.2,1526.0,0.066]
[1674098117949,1.543,1526.1,1525.9,16.79791]
[1674098120180,1.543,1526.1,1525.9,10.2448]
[1674098122823,1.53400677,1526.2,1525.9,23.35175]
[1674098124919,1.81020326,1526.2,1525.9,23.35175]
[1674098129798,1.53400677,1526.2,1525.9,23.35175]
[1674098130235,6.77e-06,1526.2,1525.9,23.35175]
[1674098131859,1.76895811,1526.3,1526.2,1.15925556]
[1674098132985,2.45704156,1526.3,1526.2,0.00325556]
[1674098133180,1.76895811,1526.3,1526.2,0.00325556]
[1674098133541,2.45704156,1526.3,1526.2,0.00325556]
[1674098133696,3.33894409,1526.3,1526.2,0.00325556]
[1674098135815,4.36679823,1526.3,1526.2,0.00325556]
[1674098136386,3.33894409,1526.3,1526.2,0.00325556]
[1674098136572,4.36679823,1526.3,1526.2,0.00325556]
[1674098137920,3.33894409,1526.3,1526.2,0.00325556]
[1674098138280,4.36679823,1526.3,1526.2,0.00325556]
[1674098138502,3.33894409,1526.3,1526.2,0.00325556]
[1674098139229,2.81213113,1526.3,1526.2,0.00325556]
[1674098139397,2.12404768,1526.3,1526.2,1.15925556]
[1674098140883,0.58304768,1526.3,1526.2,1.15925556]
[1674098141316,0.58304768,1526.3,1526.2,0.00325556]
[1674098142118,0.58304768,1526.3,1526.2,1.15925556]
[1674098142959,0.22795811,1526.3,1526.2,1.15925556]
[1674098146856,0.22795811,1526.3,1526.2,17.26369556]
[1674098147057,0.22795811,1526.3,1526.2,17.32969556]
[1674098147620,0.17795811,1526.3,1526.2,17.32969556]
[1674098150944,0.17795811,1526.3,1526.2,4.22525556]
[1674098151202,0.17795811,1526.3,1526.2,4.15925556]
[1674098151371,0.17795811,1526.3,1526.2,10.71147556]
[1674098151598,0.17795811,1526.3,1526.2,10.77747556]
[1674098153377,0.17795811,1526.3,1526.2,4.22525556]
[1674098153710,0.17795811,1526.3,1526.2,3.00325556]
[1674098154327,0.17795811,1526.3,1526.2,0.00325556]
[1674098154533,0.26456227,1526.3,1526.2,0.00325556]
[1674098154975,0.26456227,1526.3,1526.2,1.15925556]
[1674098155214,0.26456227,1526.3,1526.2,0.00325556]
[1674098157983,0.17795811,1526.3,1526.2,1.15925556]
[1674098160022,0.17795811,1526.3,1526.2,0.00325556]
[1674098164519,0.17795811,1526.3,1526.2,1.15925556]
[1674098165551,0.17795811,1526.3,1526.2,7.71147556]
[1674098165762,0.17795811,1526.3,1526.2,10.86521012]
[1674098165996,0.17795811,1526.3,1526.2,17.41743012]
[1674098168438,0.17795811,1526.3,1526.2,14.32644]
[1674098175671,0.17795811,1526.3,1526.2,7.77422]
[1674098176786,0.17795811,1526.3,1526.2,0.066]
[1674098177073,0.17795811,1526.3,1526.1,10.061]
[1674098184167,0.49654768,1526.3,1526.1,10.061]
[1674098184632,1.18463113,1526.3,1526.1,10.061]
[1674098185483,0.17795811,1526.3,1526.1,10.061]
[1674098189135,0.17795811,1526.3,1526.1,16.61354]
[1674098190363,0.17795811,1526.3,1526.1,23.16619]
[1674098192511,0.17795811,1526.3,1526.1,16.61354]
[1674098192899,0.86604156,1526.3,1526.1,16.61354]
[1674098196177,0.17795811,1526.3,1526.1,16.61354]
[1674098197381,0.86604156,1526.3,1526.1,16.61354]
[1674098197745,0.17795811,1526.3,1526.1,16.61354]
[1674098206202,0.17795811,1526.3,1526.1,0.066]
[1674098206358,1.60976721,1526.3,1526.1,3.0]
[1674098206723,1.08184572,1526.3,1526.1,2.99600159]
[1674098207342,1.21593101,1526.2,1526.0,12.4049]
[1674098207550,0.79626802,1526.2,1526.0,12.4049]
[1674098208631,1.32402373,1526.2,1526.0,12.4049]
[1674098208944,0.79626802,1526.2,1526.0,12.4049]
[1674098209252,2.35187903,1526.2,1526.0,12.4049]
[1674098209464,1.82412216,1526.2,1526.0,12.4049]
[1674098209819,0.79626802,1526.2,1526.0,12.4049]
[1674098210389,1.2766268,1526.1,1526.0,12.4049]
[1674098210767,1.96471025,1526.1,1526.0,12.4049]
[1674098211249,2.49236479,1526.1,1526.0,12.4049]
[1674098211606,2.49236479,1526.1,1526.0,0.066]
[1674098211855,23.91067285,1526.1,1525.7,0.066]
[1674098212189,1.279,1525.9,1525.6,22.0389]
[1674098212392,0.1279,1525.8,1525.6,22.0389]
[1674098214038,8.84723072,1526.0,1525.6,22.0389]
[1674098217612,8.16035648,1526.0,1525.6,22.0389]
[1674098218600,1.292,1525.9,1525.6,12.4221]
[1674098218767,14.62945,1525.9,1525.6,12.4221]
[1674098218982,1.462945,1525.8,1525.6,12.4221]
[1674098219759,1.292,1525.7,1525.6,0.064]
[1674098219946,7.84636,1525.7,1525.4,10.26012815]
[1674098220279,1.4212,1525.6,1525.4,10.26012815]
[1674098222038,4.71294759,1525.6,1525.4,0.11152815]
[1674098222253,1.509,1525.5,1525.4,0.04552815]
[1674098222591,9.82751476,1525.5,1525.4,0.04552815]
[1674098222804,9.89351476,1525.5,1525.4,0.04552815]
[1674098225407,8.61451476,1525.5,1525.4,0.04552815]
[1674098226506,0.53729476,1525.5,1525.4,0.04552815]
[1674098226719,1.4212,1525.6,1525.4,0.04552815]
[1674098227093,1.41911214,1525.6,1525.4,0.04552815]
[1674098227634,1.8497,1525.7,1525.4,0.04552815]
[1674098227818,1.7837,1525.7,1525.4,0.04552815]
[1674098228029,16.811515,1525.8,1525.4,0.04552815]
[1674098229107,16.811515,1525.8,1525.4,6.60116815]
[1674098229286,16.811515,1525.8,1525.4,7.66716815]
[1674098229751,9.866815,1525.8,1525.4,7.66716815]
[1674098230973,1.8496,1525.8,1525.4,17.43528809]
[1674098231184,1.7836,1525.8,1525.4,17.43528809]
[1674098231494,1.292,1525.8,1525.4,30.04388809]
[1674098231722,1.292,1525.8,1525.4,22.48823809]
[1674098231972,2.787725,1525.8,1525.4,19.27576815]
[1674098234542,1.495725,1525.8,1525.4,19.27576815]
[1674098239916,0.23,1525.7,1525.4,12.72012815]
[1674098240134,8.09879,1525.6,1525.4,12.72012815]
[1674098240335,9.653124,1525.6,1525.4,12.72012815]
[1674098241178,8.109124,1525.6,1525.4,12.72012815]
[1674098243349,1.544,1525.5,1525.4,0.11152815]
[1674098243523,1.774,1525.5,1525.4,0.04552815]
[1674098243844,3.06848716,1525.5,1525.4,0.04552815]
[1674098244208,9.62370716,1525.5,1525.4,0.04552815]
[1674098244422,8.14570716,1525.5,1525.4,0.04552815]
[1674098249182,8.14570716,1525.5,1525.4,0.04346376]
[1674098259712,1.59048716,1525.5,1525.4,0.04346376]
[1674098259876,1.52448716,1525.5,1525.4,0.04346376]
[1674098265484,8.07970716,1525.5,1525.4,0.04346376]
[1674098265698,8.14570716,1525.5,1525.4,0.04346376]
[1674098268133,9.38387348,1525.5,1525.4,0.04346376]
[1674098268539,9.38387293,1525.5,1525.4,0.04346376]
[1674098268716,8.8325814,1525.5,1525.4,0.04346376]
[1674098268928,8.14570716,1525.5,1525.4,0.04346376]
[1674098269294,9.38397892,1525.5,1525.4,0.04346376]
[1674098270647,9.38397721,1525.5,1525.4,0.04346376]
[1674098278937,2.82875721,1525.5,1525.4,0.04346376]
[1674098279148,2.76275721,1525.5,1525.4,0.04346376]
[1674098279466,2.76275721,1525.5,1525.4,1.09346376]
[1674098279467,2.53275721,1525.5,1525.4,1.09346376]
[1674098279717,1.23827005,1525.5,1525.4,1.09346376]
[1674098280332,1.23827005,1525.5,1525.4,0.04346376]
[1674098280537,0.68687424,1525.5,1525.4,0.04346376]
[1674098282117,0.68687424,1525.5,1525.4,0.04111492]
[1674098282638,1.71472838,1525.5,1525.4,0.04111492]
[1674098283053,2.26612419,1525.5,1525.4,0.04111492]
[1674098284745,1.23827005,1525.5,1525.4,0.04111492]
[1674098285320,0.68687424,1525.5,1525.4,0.04111492]
[1674098286327,2.26612419,1525.6,1525.4,1.09111492]
[1674098286544,0.68687424,1525.6,1525.4,1.09111492]
[1674098286795,1.23908413,1525.6,1525.4,1.09111492]
[1674098287787,1.23908413,1525.6,1525.4,0.04111492]
[1674098287997,2.12781796,1525.6,1525.4,0.04111492]
[1674098288209,1.57560807,1525.6,1525.4,0.04111492]
[1674098288978,3.1555368,1525.6,1525.4,0.04111492]
[1674098289189,2.60346221,1525.6,1525.4,0.04111492]
[1674098290213,1.57560807,1525.6,1525.4,0.04111492]
[1674098290543,3.1555011,1525.6,1525.4,0.04111492]
[1674098290750,2.60346221,1525.6,1525.4,0.04111492]
[1674098291317,1.57560807,1525.6,1525.4,0.04111492]
[1674098292550,0.48687424,1525.6,1525.4,0.04111492]
[1674098292764,1.03308132,1525.6,1525.4,0.04111492]
[1674098293097,2.06093546,1525.6,1525.4,0.04111492]
[1674098293311,0.48687424,1525.6,1525.4,0.04111492]
[1674098293465,1.03306436,1525.6,1525.4,0.04111492]
[1674098296626,0.48687424,1525.6,1525.4,0.04111492]
[1674098296834,0.48687424,1525.6,1525.4,6.59664492]
[1674098297062,1.02785414,1525.7,1525.4,9.76141266]
[1674098297300,17.89459061,1525.8,1525.4,22.09741266]
[1674098297473,0.54594804,1525.7,1525.4,22.09741266]
[1674098298399,1.57380218,1525.7,1525.4,18.99864492]
[1674098298734,1.57380218,1525.7,1525.4,12.44311492]
[1674098299363,1.57380218,1525.7,1525.4,18.99869492]
[1674098299569,17.05610392,1525.8,1525.4,18.99869492]
[1674098299921,0.54599878,1525.7,1525.4,18.99869492]
[1674098302448,1.23342552,1525.7,1525.4,18.99869492]
[1674098303287,2.26127966,1525.7,1525.4,18.99869492]
[1674098304386,0.68742674,1525.7,1525.4,18.99869492]
[1674098304602,1.23332187,1525.7,1525.4,18.99869492]
[1674098308272,0.68742674,1525.7,1525.4,18.99869492]
[1674098308483,1.23319063,1525.7,1525.4,18.99869492]
[1674098309392,0.68742674,1525.7,1525.4,18.99869492]
[1674098309847,1.23319186,1525.7,1525.4,18.99869492]
[1674098310801,2.261046,1525.7,1525.4,18.99869492]
[1674098311373,1.23319186,1525.6,1525.4,18.99869492]
[1674098311592,0.68742674,1525.6,1525.4,18.99869492]
[1674098312404,2.26114311,1525.7,1525.4,18.99869492]
[1674098312626,1.71528088,1525.7,1525.4,18.99869492]
[1674098312953,0.68742674,1525.7,1525.4,18.99869492]
[1674098313107,2.26113033,1525.7,1525.4,18.99869492]
[1674098315667,0.68742674,1525.6,1525.4,18.99869492]
[1674098316308,1.71528088,1525.7,1525.4,18.99869492]
[1674098316626,2.26397638,1525.7,1525.4,18.99869492]
[1674098318111,2.26397638,1525.7,1525.4,12.44311492]
[1674098318265,2.26397638,1525.7,1525.4,18.99869492]
[1674098318481,1.71528088,1525.7,1525.4,18.99869492]
[1674098318692,2.26403181,1525.7,1525.4,18.99869492]
[1674098319252,1.23617767,1525.6,1525.4,18.99869492]
[1674098319465,0.68742674,1525.6,1525.4,18.99869492]
[1674098320315,0.91382695,1525.6,1525.4,18.99869492]
[1674098320472,0.91382695,1525.6,1525.4,12.44311492]
[1674098321596,0.91382695,1525.6,1525.4,12.43943897]
[1674098322460,0.68742674,1525.5,1525.4,0.10343897]
[1674098322676,2.03874899,1525.5,1525.4,0.03743897]
[1674098322884,2.58740901,1525.5,1525.4,0.03743897]
[1674098323338,1.55955487,1525.5,1525.4,0.03743897]
[1674098323880,9.14262901,1525.5,1525.4,0.03743897]
[1674098324091,9.43862901,1525.5,1525.4,0.03743897]
[1674098324712,8.41077487,1525.5,1525.4,0.03743897]
[1674098326557,8.41077487,1525.5,1525.3,0.04934126]
[1674098326558,9.70377487,1525.5,1525.3,0.03678023]
[1674098326792,0.84107749,1525.4,1525.3,0.03678023]
[1674098327441,1.52850423,1525.4,1525.3,0.03678023]
[1674098328621,0.84107749,1525.4,1525.3,0.03678023]
[1674098329894,2.07688203,1525.4,1525.3,0.03678023]
[1674098331689,2.07682136,1525.4,1525.3,0.03678023]
[1674098333222,0.84107749,1525.4,1525.3,0.03678023]
[1674098341133,0.296,1525.5,1525.3,0.03678023]
[1674098341443,0.066,1525.7,1525.4,1.293]
[1674098341650,9.74758088,1525.8,1525.4,1.293]
[1674098341651,0.75342674,1525.8,1525.5,13.11044]
[1674098341809,0.68742674,1525.9,1525.6,3.0]
[1674098342021,2.46984392,1526.0,1525.6,23.84364325]
[1674098342022,1.71528088,1526.0,1525.6,23.84364325]
[1674098342237,0.68742674,1526.0,1525.6,23.90964325]
[1674098342488,1.23566923,1526.0,1525.6,23.90964325]
[1674098342695,2.26352337,1526.0,1525.6,20.01382393]
[1674098343278,2.26352337,1526.0,1525.6,23.90964325]
[1674098343489,0.68742674,1526.0,1525.7,1.0]
[1674098343745,0.68742674,1526.0,1525.8,6.55385]
[1674098343959,0.75342674,1526.1,1525.8,6.61985]
[1674098344170,0.68742674,1526.1,1525.8,6.61985]
[1674098344378,1.23534665,1526.1,1525.8,6.61985]
[1674098344961,2.26320079,1526.1,1525.8,6.61985]
[1674098345227,1.23534665,1526.0,1525.8,6.61985]
[1674098345437,1.642303,1526.1,1525.8,6.61985]
[1674098345438,2.32972974,1526.1,1525.8,6.61985]
[1674098345665,2.32751918,1526.1,1525.8,6.61985]
[1674098345990,2.32751918,1526.1,1525.8,13.17378]
[1674098346305,0.61444886,1526.1,1525.8,14.45678]
[1674098346472,0.61444886,1526.1,1525.9,4.0]
[1674098346687,0.61444886,1526.1,1526.0,6.55307]
[1674098346915,0.61444886,1526.1,1526.0,15.666911]
[1674098347129,0.12824304,1526.2,1526.0,18.666911]
[1674098347349,0.12824304,1526.2,1526.0,15.666911]
[1674098349309,0.12824304,1526.2,1526.0,15.66450381]
[1674098352919,0.12824304,1526.2,1526.1,3.0]
[1674098353144,0.12824304,1526.2,1526.1,18.97175038]
[1674098353443,0.12824304,1526.2,1526.1,19.03775038]
[1674098353659,0.12824304,1526.2,1526.1,18.03775038]
[1674098354182,0.12824304,1526.2,1526.1,40.59735038]
[1674098356579,0.12824304,1526.2,1526.1,38.7309]
[1674098356832,0.12824304,1526.2,1526.1,25.6256]
[1674098357040,0.12824304,1526.2,1526.1,22.6256]
[1674098357259,0.12824304,1526.2,1526.1,12.9215]
[1674098357444,0.12824304,1526.2,1526.1,26.0268]
[1674098359320,0.12824304,1526.2,1526.1,30.299306]
[1674098360215,0.12824304,1526.2,1526.1,33.299306]
[1674098360742,0.12824304,1526.2,1526.1,34.584306]
[1674098364473,0.12824304,1526.2,1526.1,34.582306]
[1674098364715,0.12824304,1526.2,1526.1,34.584306]
[1674098371879,0.12824304,1526.2,1526.1,34.582306]
[1674098372092,0.12824304,1526.2,1526.1,34.584306]
[1674098373038,0.12824304,1526.2,1526.1,30.3118]
[1674098373446,0.12517339,1526.2,1526.1,30.3118]
[1674098381689,0.12517339,1526.2,1526.1,29.0268]
[1674098389467,0.12517339,1526.2,1526.1,22.47415]
[1674098390886,0.12517339,1526.2,1526.1,29.0268]
[1674098401301,0.12517339,1526.2,1526.1,29.61289591]
[1674098403267,0.12517339,1526.2,1526.1,29.0268]
[1674098405425,0.12517339,1526.2,1526.1,29.02334453]
[1674098410101,0.12517339,1526.2,1526.1,22.47069453]
[1674098410397,0.91165595,1526.2,1526.1,22.47069453]
[1674098410783,1.46075646,1526.2,1526.1,22.47069453]
[1674098411363,0.22422921,1526.2,1526.1,22.47069453]
[1674098413681,0.22422921,1526.2,1526.1,29.02334453]
[1674098414174,0.22422921,1526.2,1526.1,22.47069453]
[1674098414820,1.46071484,1526.2,1526.1,22.47069453]
[1674098415343,1.46071484,1526.2,1526.1,29.02334453]
[1674098415559,1.36165902,1526.2,1526.1,29.02334453]
[1674098416588,0.12517339,1526.2,1526.1,29.02334453]
[1674098418353,0.12517339,1526.2,1526.1,13.16784453]
[1674098420030,0.12517339,1526.2,1526.1,14.16784453]
[1674098420446,0.12517339,1526.2,1526.1,13.16784453]
[1674098428641,0.12517339,1526.2,1526.1,13.75398427]
[1674098429116,0.12517339,1526.2,1526.1,14.75398427]
[1674098429488,0.12517339,1526.2,1526.1,13.75398427]
[1674098431608,0.1228205,1526.2,1526.1,13.75398427]
[1674098433187,0.52214139,1526.2,1526.1,13.75398427]
[1674098434187,0.52214139,1526.2,1526.1,18.93938188]
[1674098434397,0.52214139,1526.2,1526.1,19.62184518]
[1674098434704,0.52214139,1526.2,1526.1,20.91484518]
[1674098434864,0.52214139,1526.2,1526.1,21.77971373]
[1674098435350,0.52214139,1526.2,1526.1,21.09725043]
[1674098435869,0.52214139,1526.2,1526.1,21.77971373]
[1674098439190,0.52214139,1526.2,1526.1,21.09725043]
[1674098442064,0.52214139,1526.2,1526.1,20.23238188]
[1674098442683,0.52214139,1526.2,1526.1,16.16784453]
[1674098446437,0.52214139,1526.2,1526.1,16.16584453]
[1674098446681,0.52214139,1526.2,1526.1,16.16784453]
[1674098449329,0.52214139,1526.2,1526.1,16.75284553]
[1674098450339,0.52214139,1526.2,1526.1,16.16784453]
[1674098452562,0.51910832,1526.2,1526.1,31.242442]
[1674098452799,0.13355076,1526.4,1526.2,7.897]
[1674098453015,0.13355076,1526.4,1526.3,4.87007495]
[1674098453201,0.13355076,1526.4,1526.3,31.07723495]
[1674098453387,0.13355076,1526.4,1526.3,27.57493043]
[1674098453596,0.13355076,1526.4,1526.3,22.71791453]
[1674098458349,0.13355076,1526.4,1526.3,0.06254453]
[1674098458551,0.8209775,1526.4,1526.2,19.54949453]
[1674098459137,1.1125956,1526.4,1526.2,19.54949453]
[1674098459868,0.42516886,1526.4,1526.2,19.54949453]
[1674098461024,1.1125956,1526.4,1526.2,19.54949453]
[1674098461177,1.34669477,1526.4,1526.2,19.54949453]
[1674098461383,0.42516886,1526.4,1526.2,19.54949453]
[1674098461598,0.42516886,1526.4,1526.2,26.10171453]
[1674098465588,0.42516886,1526.4,1526.2,26.98310628]
[1674098465814,0.42516886,1526.4,1526.3,14.10358]
[1674098466025,0.42516886,1526.4,1526.3,14.16612453]
[1674098467479,0.42516886,1526.4,1526.3,13.16612453]
[1674098468058,0.42516886,1526.4,1526.3,14.16612453]
[1674098469585,0.42516886,1526.4,1526.3,13.16612453]
[1674098470366,0.42516886,1526.4,1526.3,14.16612453]
[1674098472365,0.42516886,1526.4,1526.3,13.16612453]
[1674098472593,0.42516886,1526.4,1526.3,14.16612453]
[1674098476020,0.42516886,1526.4,1526.3,13.16612453]
[1674098477078,0.42516886,1526.4,1526.3,14.16612453]
[1674098477732,0.42516886,1526.4,1526.3,18.18665398]
[1674098479272,0.42192421,1526.4,1526.3,17.18665398]
[1674098481498,0.42192421,1526.4,1526.3,13.16612453]
[1674098482932,1.10935095,1526.4,1526.3,0.06254453]
[1674098483142,1.63375055,1526.4,1526.2,6.61459453]
[1674098483356,1.71790459,1526.4,1526.2,6.61459453]
[1674098485665,1.71790459,1526.4,1526.2,0.06254453]
[1674098485941,1.71790459,1526.4,1526.1,10.05694453]
[1674098487662,5.76132589,1526.3,1526.1,0.06254453]
[1674098487910,11.3677983,1526.2,1525.8,6.61607453]
[1674098488132,9.62350088,1526.2,1525.8,6.61607453]
[1674098488343,0.68742674,1526.1,1525.8,6.61607453]
[1674098488556,1.21176366,1526.1,1525.8,6.61607453]
[1674098488776,2.22654744,1526.1,1525.8,6.61607453]
[1674098489086,1.01478378,1526.1,1525.8,7.61607453]
[1674098489297,0.75342674,1526.2,1525.8,13.17000453]
[1674098489459,9.46678088,1526.3,1525.8,13.17000453]
[1674098489669,11.52193954,1526.3,1525.8,17.60486733]
[1674098489894,10.4940854,1526.3,1525.8,17.60486733]
[1674098490128,11.52193954,1526.3,1525.8,17.60486733]
[1674098490298,10.4940854,1526.3,1525.8,17.60486733]
[1674098490527,11.52193954,1526.3,1525.8,17.60486733]
[1674098490927,11.52193954,1526.3,1525.8,13.17000453]
[1674098490928,1.15219395,1526.2,1525.8,13.17000453]
[1674098491386,9.67190069,1526.2,1525.8,6.61401637]
[1674098491665,1.21819395,1526.2,1525.8,6.61401637]
[1674098492000,0.5575,1526.3,1525.8,20.05327959]
[1674098492188,2.62860509,1526.4,1526.0,13.10586]
[1674098492405,5.14375977,1526.4,1526.0,13.16840453]
[1674098492807,5.20975977,1526.4,1526.0,13.16840453]
[1674098493728,4.18190563,1526.4,1526.0,13.16840453]
[1674098493980,4.11590563,1526.4,1526.0,13.16840453]
[1674098494137,3.62450563,1526.4,1526.0,13.16840453]
[1674098494346,1.10935095,1526.4,1526.0,16.48283198]
[1674098494676,0.4915,1526.3,1526.0,16.48283198]
[1674098494864,1.60075095,1526.4,1526.0,16.48283198]
[1674098495951,0.91332421,1526.4,1526.0,16.48283198]
[1674098496758,0.91332421,1526.4,1526.1,1.6482832]
[1674098496972,0.91332421,1526.4,1526.2,13.10444]
[1674098497200,0.42192421,1526.4,1526.2,13.16698453]
[1674098497648,0.42192421,1526.4,1526.2,14.16698453]
[1674098497803,0.42192421,1526.4,1526.2,15.02884435]
[1674098499433,0.42192421,1526.4,1526.2,14.02884435]
[1674098499646,0.42192421,1526.4,1526.2,15.02884435]
[1674098500441,0.42192421,1526.4,1526.2,14.02884435]
[1674098502220,0.42192421,1526.4,1526.2,15.02884435]
[1674098502431,0.42192421,1526.4,1526.3,1.50288443]
[1674098502790,0.42192421,1526.4,1526.3,6.55179]
[1674098502973,0.42192421,1526.4,1526.3,6.61433453]
[1674098503325,0.42192421,1526.4,1526.3,0.06254453]
[1674098503534,0.42192421,1526.4,1526.2,13.16698453]
[1674098504425,0.42192421,1526.4,1526.2,16.3561533]
[1674098509839,0.42192421,1526.4,1526.3,1.0]
[1674098509997,0.42192421,1526.4,1526.3,14.10358]
[1674098510217,0.42192421,1526.4,1526.3,13.16612453]
[1674098512676,0.41799271,1526.4,1526.3,13.16612453]
[1674098512907,0.41799271,1526.4,1526.3,17.30766786]
[1674098514424,0.41799271,1526.4,1526.3,13.16612453]
[1674098521969,0.41799271,1526.4,1526.3,16.16612453]
[1674098526337,0.31063139,1526.8,1526.4,7.897]
[1674098526550,0.24463139,1526.8,1526.5,42.2855994]
[1674098526893,0.24463139,1526.8,1526.7,26.20028]
[1674098527108,0.24463139,1526.8,1526.7,29.10005707]
[1674098527425,0.24463139,1526.8,1526.7,32.10005707]
[1674098527739,0.24463139,1526.8,1526.7,35.72747004]
[1674098528831,6.278e-05,1526.9,1526.8,7.897]
[1674098528978,0.25055289,1527.0,1526.9,34.09384]
[1674098529185,1.29674221,1527.4,1527.0,7.897]
[1674098529447,1.29674221,1527.4,1527.3,29.271]
[1674098529654,1.29674221,1527.4,1527.3,34.21680439]
[1674098530193,1.29674221,1527.4,1527.3,41.65521736]
[1674098530348,0.066,1527.8,1527.4,1.0]
[1674098530566,0.68586921,1527.9,1527.4,1.0]
[1674098530567,0.68586921,1527.9,1527.5,8.08955]
[1674098530770,0.68586921,1527.9,1527.5,8.25209453]
[1674098531028,0.68586921,1527.9,1527.6,3.0]
[1674098531029,1.71372335,1527.9,1527.6,3.0]
[1674098531342,1.0,1527.8,1527.6,3.0]
[1674098531511,1.68586921,1527.9,1527.5,14.89354453]
[1674098531725,0.06858692,1527.8,1527.5,14.89354453]
[1674098531949,0.06858692,1527.8,1527.5,11.89354453]
[1674098532162,0.06858692,1527.8,1527.5,0.06254453]
[1674098532163,2.27331027,1527.8,1527.5,0.06254453]
[1674098532372,1.0,1527.6,1527.2,11.831]
[1674098532585,16.91831702,1527.6,1527.2,0.06254453]
[1674098532763,8.9598417,1527.5,1526.9,11.831]
[1674098532975,9.0258417,1527.5,1526.9,11.89354453]
[1674098533341,1.90258417,1527.4,1526.9,11.89354453]
[1674098533561,2.44258417,1527.4,1526.9,11.89354453]
[1674098533863,0.4912,1527.3,1526.9,11.89354453]
[1674098536183,2.0232,1527.3,1526.9,0.06254453]
[1674098536350,1.74532,1527.2,1526.8,3.0]
[1674098536551,1.543,1527.1,1526.8,3.0]
[1674098537388,1.74532,1527.2,1526.8,3.0]
[1674098537629,0.174532,1527.1,1526.8,3.0]
[1674098538494,0.20232,1527.2,1526.8,3.0]
[1674098543941,2.0342,1527.3,1526.8,3.0]
[1674098543942,0.4912,1527.3,1526.8,3.0]
[1674098544204,0.4912,1527.3,1526.8,17.64113]
[1674098544420,0.4912,1527.3,1526.9,1.543]
[1674098544632,0.4912,1527.3,1526.9,9.09217]
[1674098544952,0.4912,1527.3,1526.9,9.15471453]
[1674098545464,0.4912,1527.3,1526.9,8.15471453]
[1674098546254,1.39368417,1527.4,1526.9,8.15471453]
[1674098546521,0.13936842,1527.3,1526.9,9.15471453]
[1674098546674,0.13936842,1527.3,1526.9,7.61171453]
[1674098547358,0.4911,1527.4,1527.0,1.542]
[1674098547514,0.75186921,1527.6,1527.0,1.542]
[1674098547723,39.38398414,1527.7,1527.1,14.6333]
[1674098547724,8.32585335,1527.7,1527.1,14.6333]
[1674098547966,7.29799921,1527.7,1527.1,14.69584453]
[1674098548181,7.29799921,1527.7,1527.2,3.0]
[1674098548182,9.56802352,1527.7,1527.2,3.0]
[1674098548406,9.56802352,1527.7,1527.2,9.54768]
[1674098548622,3.02189352,1527.7,1527.2,9.61022453]
[1674098548830,2.46489352,1527.7,1527.2,19.38982693]
[1674098549001,0.68586921,1527.7,1527.2,19.38982693]
[1674098549212,1.16291413,1527.7,1527.2,19.38982693]
[1674098550981,7.70880413,1527.7,1527.2,12.84189693]
[1674098551245,9.86861335,1527.7,1527.2,9.61022453]
[1674098551623,16.41450335,1527.7,1527.2,9.61022453]
[1674098551830,16.41450335,1527.7,1527.2,9.60714923]
[1674098552044,18.89718966,1527.7,1527.2,9.60714923]
[1674098552513,1.16296395,1527.6,1527.2,9.60714923]
[1674098552723,7.70923395,1527.6,1527.2,9.60714923]
[1674098552871,7.29813921,1527.6,1527.2,9.60714923]
[1674098553828,15.38740921,1527.6,1527.2,3.05946923]
[1674098554077,0.72981392,1527.5,1527.2,2.9969247]
[1674098554240,7.27651392,1527.5,1527.2,2.9969247]
[1674098554465,7.34251392,1527.5,1527.2,2.9969247]
[1674098555188,8.02838313,1527.5,1527.2,2.9969247]
[1674098555555,7.34251392,1527.5,1527.2,2.9969247]
[1674098556077,0.79581392,1527.5,1527.2,2.9969247]
[1674098556295,0.72981392,1527.5,1527.2,2.9969247]
[1674098557130,3.32272335,1527.6,1527.2,9.5446547]
[1674098557353,1.71372335,1527.6,1527.2,9.60719923]
[1674098557499,0.68586921,1527.5,1527.2,9.60719923]
[1674098557708,2.19150055,1527.6,1527.2,9.60719923]
[1674098557955,3.78865101,1527.6,1527.2,9.60719923]
[1674098558790,1.77972335,1527.7,1527.2,17.69812923]
[1674098559006,0.68586921,1527.6,1527.3,1.543]
[1674098559219,0.68586921,1527.6,1527.3,8.09028]
[1674098559547,0.68586921,1527.6,1527.3,6.60982453]
[1674098560480,1.16354117,1527.6,1527.3,6.60982453]
[1674098560656,1.16354117,1527.6,1527.3,9.03336545]
[1674098561109,2.19139531,1527.6,1527.3,0.06254453]
[1674098561333,1.16354117,1527.5,1527.2,3.05946923]
[1674098561654,1.16354117,1527.5,1527.2,2.9969247]
[1674098561655,0.68586921,1527.5,1527.2,2.9969247]
[1674098561823,10.79875079,1527.5,1527.2,2.9969247]
[1674098562045,9.38685386,1527.5,1527.2,2.9969247]
[1674098563439,1.16410355,1527.4,1527.2,2.9969247]
[1674098563607,8.32637335,1527.5,1527.2,2.9969247]
[1674098564009,10.60587366,1527.5,1527.2,2.9969247]
[1674098564220,2.19195451,1527.4,1527.2,2.9969247]
[1674098564514,1.16410037,1527.3,1527.1,12.21034453]
[1674098564639,2.0329188,1527.3,1527.1,0.06254453]
[1674098564850,0.68586921,1527.2,1527.0,0.06254453]
[1674098565063,1.36797891,1527.2,1526.9,19.53294453]
[1674098565308,0.68586921,1527.2,1526.9,19.53294453]
[1674098565686,1.16468516,1527.2,1526.9,19.53294453]
[1674098566249,0.68586921,1527.2,1526.9,19.53294453]
[1674098567123,1.16467265,1527.2,1526.9,19.53294453]
[1674098567428,0.68586921,1527.2,1526.9,22.95030798]
[1674098568002,0.68586921,1527.3,1526.9,31.04151798]
[1674098568708,1.71372335,1527.3,1526.9,31.04151798]
[1674098569242,0.68586921,1527.2,1526.9,19.53294453]
[1674098569762,1.16470716,1527.2,1526.9,19.53294453]
[1674098570917,0.68586921,1527.2,1526.9,19.53294453]
[1674098571072,0.68586921,1527.1,1526.9,19.53294453]
[1674098571283,0.68586921,1527.0,1526.9,12.98374453]
[1674098571547,0.68586921,1527.0,1526.9,0.06254453]
[1674098571766,1.16472932,1527.0,1526.8,3.0]
[1674098572124,0.68586921,1527.0,1526.8,9.54963]
[1674098572437,0.68586921,1527.0,1526.8,9.61217453]
[1674098572644,1.71372335,1527.1,1526.8,13.16443163]
[1674098573339,0.68586921,1527.0,1526.8,13.16443163]
[1674098573557,1.02785414,1527.1,1526.8,13.16443163]
[1674098573558,1.71372335,1527.1,1526.8,13.16443163]
[1674098574385,2.19281175,1527.1,1526.8,13.16443163]
[1674098574980,0.68586921,1527.0,1526.8,13.16443163]